fUSD/lending_fUSD_20260621
["ID","MTS","AMOUNT","RATE_DAILY","PERIOD"]
[425961782,1782045062000,-500.0,0.00027671,2]
[425961785,1782045062000,-500.0,0.00027671,2]
[425961863,1782045063000,-500.0,0.00027671,2]
[425961846,1782045063000,-500.0,0.00027671,2]
[425961845,1782045063000,-500.0,0.00027671,2]
[425961843,1782045063000,-500.0,0.00027671,2]
[425961853,1782045063000,-500.0,0.00027671,2]
[425961857,1782045063000,-500.0,0.00027671,2]
[425961858,1782045063000,-500.0,0.00027671,2]
[425961859,1782045063000,-509.70331562,0.00027671,2]
[425961854,1782045063000,-500.0,0.00027671,2]
[425961844,1782045063000,-500.0,0.00027671,2]
[425961875,1782045063000,-500.0,0.00027671,2]
[425961861,1782045063000,-500.0,0.00027671,2]
[425961855,1782045063000,-500.0,0.00027671,2]
[425961862,1782045063000,-500.0,0.00027671,2]
[425961860,1782045063000,-500.0,0.00027671,2]
[425961865,1782045063000,-500.0,0.00027671,2]
[425961876,1782045063000,-486.50312307,0.00027671,2]
[425961868,1782045063000,-500.0,0.00027671,2]
[425961871,1782045063000,-500.0,0.00027671,2]
[425961870,1782045063000,-500.0,0.00027671,2]
[425961864,1782045063000,-335.02,0.00027671,2]
[425961847,1782045063000,-532.94558662,0.00027671,2]
[425961856,1782045063000,-678.71,0.00027671,2]
[425961841,1782045063000,-500.0,0.00027671,2]
[425961835,1782045063000,-500.0,0.00027671,2]
[425961842,1782045063000,-300.80559119,0.00027671,2]
[425961828,1782045063000,-151.0,0.00027671,7]
[425961823,1782045063000,-500.0,0.00027671,2]
[425961822,1782045063000,-500.0,0.00027671,2]
[425961825,1782045063000,-500.0,0.00027671,2]
[425961827,1782045063000,-500.0,0.00027671,2]
[425961821,1782045063000,-41216.394702,0.00027671,2]
[425961824,1782045063000,-500.0,0.00027671,2]
[425961826,1782045063000,-500.0,0.00027671,2]
[425961829,1782045063000,-188.03343347,0.00027671,2]
[425961831,1782045063000,-500.0,0.00027671,2]
[425961833,1782045063000,-500.0,0.00027671,2]
[425961830,1782045063000,-500.0,0.00027671,2]
[425961832,1782045063000,-500.0,0.00027671,2]
[425961837,1782045063000,-500.0,0.00027671,2]
[425961838,1782045063000,-500.0,0.00027671,2]
[425961834,1782045063000,-500.0,0.00027671,2]
[425961839,1782045063000,-620.22,0.00027671,2]
[425961836,1782045063000,-500.0,0.00027671,2]
[425961840,1782045063000,-500.0,0.00027671,2]
[425961848,1782045063000,-542.68578693,0.00027671,2]
[425961851,1782045063000,-500.0,0.00027671,2]
[425961850,1782045063000,-500.0,0.00027671,2]
[425961852,1782045063000,-500.0,0.00027671,2]
[425961849,1782045063000,-500.0,0.00027671,2]
[425961874,1782045063000,-500.0,0.00027671,2]
[425961866,1782045063000,-500.0,0.00027671,2]
[425961869,1782045063000,-500.0,0.00027671,2]
[425961902,1782045063000,-500.0,0.00027671,2]
[425961903,1782045063000,-628.69200536,0.00027671,2]
[425961905,1782045063000,-500.0,0.00027671,2]
[425961912,1782045063000,-500.0,0.00027671,2]
[425961909,1782045063000,-500.0,0.00027671,2]
[425961901,1782045063000,-500.0,0.00027671,2]
[425961908,1782045063000,-500.0,0.00027671,2]
[425961906,1782045063000,-500.0,0.00027671,2]
[425961907,1782045063000,-500.0,0.00027671,2]
[425961913,1782045063000,-742.97,0.00027671,2]
[425961904,1782045063000,-500.0,0.00027671,2]
[425961910,1782045063000,-952.51,0.00027671,2]
[425961921,1782045063000,-500.0,0.00027671,2]
[425961916,1782045063000,-444.45474692,0.00027671,2]
[425961915,1782045063000,-500.0,0.00027671,2]
[425961920,1782045063000,-526.04285834,0.00027671,2]
[425961914,1782045063000,-500.0,0.00027671,2]
[425961919,1782045063000,-500.0,0.00027671,2]
[425961918,1782045063000,-866.69,0.00027671,2]
[425961922,1782045063000,-2678.53,0.00027671,2]
[425961923,1782045063000,-500.0,0.00027671,2]
[425961867,1782045063000,-500.0,0.00027671,2]
[425961917,1782045063000,-1465.91,0.00027671,2]
[425961897,1782045063000,-500.0,0.00027671,2]
[425961911,1782045063000,-523.09747319,0.00027671,2]
[425961894,1782045063000,-500.0,0.00027671,2]
[425961895,1782045063000,-408.94596945,0.00027671,2]
[425961872,1782045063000,-533.50882742,0.00027671,2]
[425961873,1782045063000,-583.83,0.00027671,2]
[425961879,1782045063000,-500.0,0.00027671,2]
[425961880,1782045063000,-500.0,0.00027671,2]
[425961882,1782045063000,-629.68838863,0.00027671,2]
[425961881,1782045063000,-500.0,0.00027671,2]
[425961883,1782045063000,-500.0,0.00027671,2]
[425961884,1782045063000,-500.0,0.00027671,2]
[425961878,1782045063000,-8081.3,0.00027671,2]
[425961886,1782045063000,-500.0,0.00027671,2]
[425961887,1782045063000,-492.63740893,0.00027671,2]
[425961877,1782045063000,-500.0,0.00027671,2]
[425961885,1782045063000,-500.0,0.00027671,2]
[425961891,1782045063000,-500.0,0.00027671,2]
[425961890,1782045063000,-500.0,0.00027671,2]
[425961888,1782045063000,-500.0,0.00027671,2]
[425961898,1782045063000,-500.0,0.00027671,2]
[425961892,1782045063000,-500.0,0.00027671,2]
[425961893,1782045063000,-1423.29,0.00027671,2]
[425961899,1782045063000,-500.0,0.00027671,2]
[425961900,1782045063000,-564.53,0.00027671,2]
[425961889,1782045063000,-500.0,0.00027671,2]
[425961896,1782045063000,-500.0,0.00027671,2]
[425961972,1782045064000,-500.0,0.00027671,2]
[425961957,1782045064000,-500.0,0.00027671,2]
[425961955,1782045064000,-500.0,0.00027671,2]
[425961949,1782045064000,-500.0,0.00027671,2]
[425961959,1782045064000,-500.0,0.00027671,2]
[425961954,1782045064000,-500.0,0.00027671,2]
[425961958,1782045064000,-500.0,0.00027671,2]
[425961956,1782045064000,-504.00985971,0.00027671,2]
[425961960,1782045064000,-500.0,0.00027671,2]
[425961967,1782045064000,-500.0,0.00027671,2]
[425961973,1782045064000,-3268.54,0.00027671,2]
[425961965,1782045064000,-507.16043867,0.00027671,2]
[425961981,1782045064000,-500.0,0.00027671,2]
[425961962,1782045064000,-3531.97,0.00027671,2]
[425961970,1782045064000,-500.0,0.00027671,2]
[425961968,1782045064000,-500.0,0.00027671,2]
[425961964,1782045064000,-500.0,0.00027671,2]
[425961966,1782045064000,-500.0,0.00027671,2]
[425961963,1782045064000,-500.0,0.00027671,2]
[425961971,1782045064000,-526.28458613,0.00027671,2]
[425961961,1782045064000,-500.0,0.00027671,2]
[425961976,1782045064000,-781.73,0.00027671,2]
[425961974,1782045064000,-500.0,0.00027671,2]
[425961953,1782045064000,-202.83736543,0.00027671,2]
[425961969,1782045064000,-500.0,0.00027671,2]
[425961952,1782045064000,-616.3,0.00027671,2]
[425961924,1782045064000,-500.0,0.00027671,2]
[425961950,1782045064000,-500.0,0.00027671,2]
[425961925,1782045064000,-1511.74,0.00027671,2]
[425961979,1782045064000,-500.0,0.00027671,2]
[425961928,1782045064000,-500.0,0.00027671,2]
[425961934,1782045064000,-500.0,0.00027671,2]
[425961931,1782045064000,-500.0,0.00027671,2]
[425961929,1782045064000,-1080.44,0.00027671,2]
[425961926,1782045064000,-500.0,0.00027671,2]
[425961932,1782045064000,-519.3,0.00027671,2]
[425961933,1782045064000,-500.0,0.00027671,2]
[425961936,1782045064000,-500.0,0.00027671,2]
[425961930,1782045064000,-500.0,0.00027671,2]
[425961927,1782045064000,-500.0,0.00027671,2]
[425961935,1782045064000,-500.0,0.00027671,2]
[425961938,1782045064000,-4055.16,0.00027671,2]
[425961937,1782045064000,-500.0,0.00027671,2]
[425961939,1782045064000,-500.0,0.00027671,2]
[425961943,1782045064000,-1118.18,0.00027671,2]
[425961940,1782045064000,-1144.58,0.00027671,2]
[425961941,1782045064000,-500.0,0.00027671,2]
[425961942,1782045064000,-500.0,0.00027671,2]
[425961946,1782045064000,-500.0,0.00027671,2]
[425961945,1782045064000,-500.0,0.00027671,2]
[425961944,1782045064000,-500.0,0.00027671,2]
[425961947,1782045064000,-500.0,0.00027671,2]
[425961948,1782045064000,-500.0,0.00027671,2]
[425961951,1782045064000,-632.2,0.00027671,2]
[425961984,1782045064000,-500.0,0.00027671,2]
[425961977,1782045064000,-500.0,0.00027671,2]
[425961978,1782045064000,-500.0,0.00027671,2]
[425962011,1782045064000,-500.0,0.00027671,2]
[425962012,1782045064000,-500.0,0.00027671,2]
[425962014,1782045064000,-500.0,0.00027671,2]
[425962015,1782045064000,-500.0,0.00027671,2]
[425962017,1782045064000,-569.32161156,0.00027671,2]
[425962016,1782045064000,-500.0,0.00027671,2]
[425962013,1782045064000,-500.0,0.00027671,2]
[425962026,1782045064000,-500.0,0.00027671,2]
[425962019,1782045064000,-634.01695776,0.00027671,2]
[425962024,1782045064000,-500.0,0.00027671,2]
[425962021,1782045064000,-1056.03,0.00027671,2]
[425962025,1782045064000,-500.0,0.00027671,2]
[425962018,1782045064000,-500.0,0.00027671,2]
[425962020,1782045064000,-729.63,0.00027671,2]
[425962027,1782045064000,-163.200745,0.00027671,7]
[425962028,1782045064000,-5008.67,0.00027671,2]
[425962022,1782045064000,-500.0,0.00027671,2]
[425962023,1782045064000,-500.0,0.00027671,2]
[425962035,1782045064000,-500.0,0.00027671,2]
[425962030,1782045064000,-500.0,0.00027671,2]
[425962032,1782045064000,-163.200745,0.00027671,7]
[425962031,1782045064000,-500.0,0.00027671,2]
[425962029,1782045064000,-163.200745,0.00027671,7]
[425962034,1782045064000,-500.0,0.00027671,2]
[425961975,1782045064000,-3987.32,0.00027671,2]
[425962010,1782045064000,-576.16,0.00027671,2]
[425962009,1782045064000,-500.0,0.00027671,2]
[425962033,1782045064000,-500.0,0.00027671,2]
[425962008,1782045064000,-513.21174292,0.00027671,2]
[425961980,1782045064000,-500.0,0.00027671,2]
[425961982,1782045064000,-584.39390235,0.00027671,2]
[425961983,1782045064000,-500.0,0.00027671,2]
[425961989,1782045064000,-500.0,0.00027671,2]
[425961985,1782045064000,-500.0,0.00027671,2]
[425961993,1782045064000,-500.0,0.00027671,2]
[425961987,1782045064000,-3618.62,0.00027671,2]
[425962007,1782045064000,-5224.19,0.00027671,2]
[425961988,1782045064000,-196.15916818,0.00027671,2]
[425961992,1782045064000,-500.0,0.00027671,2]
[425961994,1782045064000,-500.0,0.00027671,2]
[425961995,1782045064000,-500.0,0.00027671,2]
[425961986,1782045064000,-500.0,0.00027671,2]
[425961991,1782045064000,-500.0,0.00027671,2]
[425961990,1782045064000,-500.0,0.00027671,2]
[425962000,1782045064000,-500.0,0.00027671,2]
[425962005,1782045064000,-500.0,0.00027671,2]
[425961999,1782045064000,-5864.59,0.00027671,2]
[425961997,1782045064000,-500.0,0.00027671,2]
[425962004,1782045064000,-500.0,0.00027671,2]
[425962006,1782045064000,-1823.11,0.00027671,2]
[425962003,1782045064000,-500.0,0.00027671,2]
[425961996,1782045064000,-556.75656938,0.00027671,2]
[425961998,1782045064000,-6355.9,0.00027671,2]
[425962002,1782045064000,-500.0,0.00027671,2]
[425962001,1782045064000,-500.0,0.00027671,2]
[425962075,1782045065000,-500.0,0.00027671,2]
[425962069,1782045065000,-4173.31,0.00027671,2]
[425962063,1782045065000,-500.0,0.00027671,2]
[425962071,1782045065000,-500.0,0.00027671,2]
[425962067,1782045065000,-500.0,0.00027671,2]
[425962072,1782045065000,-500.0,0.00027671,2]
[425962064,1782045065000,-500.0,0.00027671,2]
[425962070,1782045065000,-500.0,0.00027671,2]
[425962073,1782045065000,-4832.29,0.00027671,2]
[425962066,1782045065000,-500.0,0.00027671,2]
[425962079,1782045065000,-500.0,0.00027671,2]
[425962092,1782045065000,-500.0,0.00027671,2]
[425962082,1782045065000,-500.0,0.00027671,2]
[425962074,1782045065000,-500.0,0.00027671,2]
[425962076,1782045065000,-500.0,0.00027671,2]
[425962081,1782045065000,-500.0,0.00027671,2]
[425962078,1782045065000,-500.0,0.00027671,2]
[425962077,1782045065000,-1025.57,0.00027671,2]
[425962094,1782045065000,-507.9,0.00027671,2]
[425962084,1782045065000,-500.0,0.00027671,2]
[425962083,1782045065000,-500.0,0.00027671,2]
[425962086,1782045065000,-500.0,0.00027671,2]
[425962085,1782045065000,-1355.81,0.00027671,2]
[425962068,1782045065000,-500.0,0.00027671,2]
[425962080,1782045065000,-500.0,0.00027671,2]
[425962065,1782045065000,-500.0,0.00027671,2]
[425962049,1782045065000,-500.0,0.00027671,2]
[425962057,1782045065000,-237.49547066,0.00027671,2]
[425962091,1782045065000,-500.0,0.00027671,2]
[425962036,1782045065000,-500.0,0.00027671,2]
[425962038,1782045065000,-1286.09,0.00027671,2]
[425962037,1782045065000,-163.200745,0.00027671,7]
[425962039,1782045065000,-500.0,0.00027671,2]
[425962041,1782045065000,-500.0,0.00027671,2]
[425962043,1782045065000,-7733.74,0.00027671,2]
[425962048,1782045065000,-500.0,0.00027671,2]
[425962042,1782045065000,-500.0,0.00027671,2]
[425962044,1782045065000,-500.0,0.00027671,2]
[425962050,1782045065000,-1433.76,0.00027671,2]
[425962045,1782045065000,-500.0,0.00027671,2]
[425962040,1782045065000,-500.0,0.00027671,2]
[425962046,1782045065000,-500.0,0.00027671,2]
[425962047,1782045065000,-500.0,0.00027671,2]
[425962052,1782045065000,-500.0,0.00027671,2]
[425962055,1782045065000,-500.0,0.00027671,2]
[425962053,1782045065000,-212.04879848,0.00027671,2]
[425962051,1782045065000,-500.0,0.00027671,2]
[425962058,1782045065000,-3782.67,0.00027671,2]
[425962056,1782045065000,-500.0,0.00027671,2]
[425962054,1782045065000,-1130.66,0.00027671,2]
[425962060,1782045065000,-500.0,0.00027671,2]
[425962061,1782045065000,-500.0,0.00027671,2]
[425962059,1782045065000,-500.0,0.00027671,2]
[425962062,1782045065000,-500.0,0.00027671,2]
[425962087,1782045065000,-500.0,0.00027671,2]
[425962093,1782045065000,-500.0,0.00027671,2]
[425962088,1782045065000,-500.0,0.00027671,2]
[425962120,1782045065000,-6731.23,0.00027671,2]
[425962118,1782045065000,-500.0,0.00027671,2]
[425962128,1782045065000,-1474.82,0.00027671,2]
[425962124,1782045065000,-500.0,0.00027671,2]
[425962127,1782045065000,-726.26,0.00027671,2]
[425962125,1782045065000,-5860.3,0.00027671,2]
[425962129,1782045065000,-637.47,0.00027671,2]
[425962131,1782045065000,-3992.11,0.00027671,2]
[425962140,1782045065000,-5141.27,0.00027671,2]
[425962130,1782045065000,-597.69,0.00027671,2]
[425962134,1782045065000,-1159.08,0.00027671,2]
[425962136,1782045065000,-500.0,0.00027671,2]
[425962139,1782045065000,-5096.32,0.00027671,2]
[425962137,1782045065000,-500.0,0.00027671,2]
[425962138,1782045065000,-500.0,0.00027671,2]
[425962133,1782045065000,-4728.06,0.00027671,2]
[425962135,1782045065000,-500.0,0.00027671,2]
[425962132,1782045065000,-500.0,0.00027671,2]
[425962141,1782045065000,-500.0,0.00027671,2]
[425962144,1782045065000,-1298.87,0.00027671,2]
[425962146,1782045065000,-500.0,0.00027671,2]
[425962145,1782045065000,-500.0,0.00027671,2]
[425962142,1782045065000,-500.0,0.00027671,2]
[425962147,1782045065000,-500.0,0.00027671,2]
[425962089,1782045065000,-500.0,0.00027671,2]
[425962117,1782045065000,-500.0,0.00027671,2]
[425962126,1782045065000,-500.0,0.00027671,2]
[425962143,1782045065000,-165.47200439,0.00027671,2]
[425962123,1782045065000,-500.0,0.00027671,2]
[425962122,1782045065000,-500.0,0.00027671,2]
[425962090,1782045065000,-4844.04,0.00027671,2]
[425962148,1782045065000,-6263.39,0.00027671,2]
[425962104,1782045065000,-1000.0,0.00027671,2]
[425962097,1782045065000,-500.0,0.00027671,2]
[425962096,1782045065000,-500.0,0.00027671,2]
[425962102,1782045065000,-500.0,0.00027671,2]
[425962101,1782045065000,-7823.53,0.00027671,2]
[425962098,1782045065000,-500.0,0.00027671,2]
[425962103,1782045065000,-2146.6,0.00027671,2]
[425962105,1782045065000,-500.0,0.00027671,2]
[425962095,1782045065000,-500.0,0.00027671,2]
[425962100,1782045065000,-500.0,0.00027671,2]
[425962099,1782045065000,-500.0,0.00027671,2]
[425962115,1782045065000,-572.08726064,0.00027671,2]
[425962112,1782045065000,-551.39,0.00027671,2]
[425962113,1782045065000,-500.0,0.00027671,2]
[425962116,1782045065000,-337.29,0.00027671,2]
[425962110,1782045065000,-500.0,0.00027671,2]
[425962108,1782045065000,-512.52646206,0.00027671,2]
[425962119,1782045065000,-6223.97,0.00027671,2]
[425962109,1782045065000,-500.0,0.00027671,2]
[425962114,1782045065000,-500.0,0.00027671,2]
[425962106,1782045065000,-3214.78,0.00027671,2]
[425962111,1782045065000,-500.0,0.00027671,2]
[425962107,1782045065000,-523.9782396,0.00027671,2]
[425962121,1782045065000,-9055.22,0.00027671,2]
[425962170,1782045066000,-500.0,0.00027671,2]
[425962185,1782045066000,-500.0,0.00027671,2]
[425962168,1782045066000,-992.87,0.00027671,2]
[425962179,1782045066000,-500.0,0.00027671,2]
[425962178,1782045066000,-500.0,0.00027671,2]
[425962190,1782045066000,-544.0540002,0.00027671,2]
[425962181,1782045066000,-773.06,0.00027671,2]
[425962189,1782045066000,-500.0,0.00027671,2]
[425962180,1782045066000,-8107.86,0.00027671,2]
[425962186,1782045066000,-500.0,0.00027671,2]
[425962196,1782045066000,-500.0,0.00027671,2]
[425962182,1782045066000,-7002.11,0.00027671,2]
[425962183,1782045066000,-500.0,0.00027671,2]
[425962188,1782045066000,-500.0,0.00027671,2]
[425962184,1782045066000,-871.25,0.00027671,2]
[425962192,1782045066000,-5276.34,0.00027671,2]
[425962195,1782045066000,-500.0,0.00027671,2]
[425962194,1782045066000,-500.0,0.00027671,2]
[425962199,1782045066000,-500.0,0.00027671,2]
[425962191,1782045066000,-730.46,0.00027671,2]
[425962198,1782045066000,-741.34,0.00027671,2]
[425962176,1782045066000,-500.0,0.00027671,2]
[425962187,1782045066000,-500.0,0.00027671,2]
[425962175,1782045066000,-500.0,0.00027671,2]
[425962157,1782045066000,-500.0,0.00027671,2]
[425962173,1782045066000,-500.0,0.00027671,2]
[425962193,1782045066000,-1020.02,0.00027671,2]
[425962152,1782045066000,-500.0,0.00027671,2]
[425962151,1782045066000,-8949.23,0.00027671,2]
[425962153,1782045066000,-924.2,0.00027671,2]
[425962150,1782045066000,-500.0,0.00027671,2]
[425962149,1782045066000,-500.23,0.00027671,2]
[425962154,1782045066000,-9081.48,0.00027671,2]
[425962166,1782045066000,-500.0,0.00027671,2]
[425962160,1782045066000,-647.05102265,0.00027671,2]
[425962164,1782045066000,-3170.63,0.00027671,2]
[425962163,1782045066000,-500.0,0.00027671,2]
[425962156,1782045066000,-6306.04,0.00027671,2]
[425962159,1782045066000,-832.56,0.00027671,2]
[425962162,1782045066000,-500.0,0.00027671,2]
[425962158,1782045066000,-3197.6,0.00027671,2]
[425962161,1782045066000,-8232.87,0.00027671,2]
[425962155,1782045066000,-500.0,0.00027671,2]
[425962165,1782045066000,-500.0,0.00027671,2]
[425962167,1782045066000,-1491.56,0.00027671,2]
[425962172,1782045066000,-8598.16,0.00027671,2]
[425962177,1782045066000,-4167.22,0.00027671,2]
[425962169,1782045066000,-580.58,0.00027671,2]
[425962171,1782045066000,-5407.87,0.00027671,2]
[425962174,1782045066000,-4330.21,0.00027671,2]
[425962202,1782045066000,-500.0,0.00027671,2]
[425962197,1782045066000,-5165.11,0.00027671,2]
[425962200,1782045066000,-179.88595093,0.00027671,2]
[425962227,1782045066000,-500.0,0.00027671,2]
[425962226,1782045066000,-3436.0,0.00027671,2]
[425962231,1782045066000,-1014.006121,0.00027671,7]
[425962228,1782045066000,-500.0,0.00027671,2]
[425962225,1782045066000,-500.0,0.00027671,2]
[425962243,1782045066000,-390.31812348,0.00027671,2]
[425962244,1782045066000,-1014.006121,0.00027671,7]
[425962239,1782045066000,-500.0,0.00027671,2]
[425962242,1782045066000,-8285.02,0.00027671,2]
[425962238,1782045066000,-1014.006121,0.00027671,7]
[425962237,1782045066000,-3210.18,0.00027671,2]
[425962241,1782045066000,-500.0,0.00027671,2]
[425962236,1782045066000,-500.0,0.00027671,2]
[425962245,1782045066000,-500.0,0.00027671,2]
[425962246,1782045066000,-500.0,0.00027671,2]
[425962235,1782045066000,-500.0,0.00027671,2]
[425962248,1782045066000,-1079.66,0.00027671,2]
[425962250,1782045066000,-525.46,0.00027671,2]
[425962247,1782045066000,-500.0,0.00027671,2]
[425962249,1782045066000,-500.0,0.00027671,2]
[425962251,1782045066000,-500.0,0.00027671,2]
[425962252,1782045066000,-513.77,0.00027671,2]
[425962203,1782045066000,-500.0,0.00027671,2]
[425962229,1782045066000,-1014.006121,0.00027671,7]
[425962233,1782045066000,-500.0,0.00027671,2]
[425962240,1782045066000,-521.54,0.00027671,2]
[425962232,1782045066000,-500.0,0.00027671,2]
[425962201,1782045066000,-6940.99,0.00027671,2]
[425962230,1782045066000,-6267.31,0.00027671,2]
[425962205,1782045066000,-500.0,0.00027671,2]
[425962207,1782045066000,-500.0,0.00027671,2]
[425962206,1782045066000,-500.0,0.00027671,2]
[425962208,1782045066000,-500.0,0.00027671,2]
[425962209,1782045066000,-591.52,0.00027671,2]
[425962210,1782045066000,-544.76256334,0.00027671,2]
[425962212,1782045066000,-500.0,0.00027671,2]
[425962211,1782045066000,-500.0,0.00027671,2]
[425962217,1782045066000,-500.0,0.00027671,2]
[425962204,1782045066000,-500.0,0.00027671,2]
[425962214,1782045066000,-12006.98,0.00027671,2]
[425962215,1782045066000,-500.0,0.00027671,2]
[425962218,1782045066000,-4743.48,0.00027671,2]
[425962216,1782045066000,-500.0,0.00027671,2]
[425962213,1782045066000,-500.0,0.00027671,2]
[425962219,1782045066000,-4314.2,0.00027671,2]
[425962220,1782045066000,-7717.9,0.00027671,2]
[425962234,1782045066000,-500.0,0.00027671,2]
[425962221,1782045066000,-500.0,0.00027671,2]
[425962224,1782045066000,-500.0,0.00027671,2]
[425962222,1782045066000,-567.55021714,0.00027671,2]
[425962223,1782045066000,-4134.83,0.00027671,2]
[425962291,1782045067000,-500.0,0.00027671,2]
[425962295,1782045067000,-565.93692672,0.00027671,2]
[425962286,1782045067000,-1210.21,0.00027671,2]
[425962299,1782045067000,-500.0,0.00027671,2]
[425962294,1782045067000,-500.0,0.00027671,2]
[425962293,1782045067000,-500.0,0.00027671,2]
[425962285,1782045067000,-623.51,0.00027671,2]
[425962284,1782045067000,-6441.96,0.00027671,2]
[425962289,1782045067000,-500.0,0.00027671,2]
[425962288,1782045067000,-500.0,0.00027671,2]
[425962308,1782045067000,-500.0,0.00027671,2]
[425962290,1782045067000,-500.0,0.00027671,2]
[425962306,1782045067000,-500.0,0.00027671,2]
[425962314,1782045067000,-221.50304547,0.00027671,2]
[425962298,1782045067000,-500.0,0.00027671,2]
[425962303,1782045067000,-640.21,0.00027671,2]
[425962297,1782045067000,-500.0,0.00027671,2]
[425962300,1782045067000,-4451.14,0.00027671,2]
[425962304,1782045067000,-500.0,0.00027671,2]
[425962315,1782045067000,-500.0,0.00027671,2]
[425962296,1782045067000,-500.0,0.00027671,2]
[425962302,1782045067000,-3258.21,0.00027671,2]
[425962307,1782045067000,-500.0,0.00027671,2]
[425962309,1782045067000,-499.70084309,0.00027671,2]
[425962311,1782045067000,-934.42,0.00027671,2]
[425962313,1782045067000,-500.0,0.00027671,2]
[425962292,1782045067000,-500.0,0.00027671,2]
[425962301,1782045067000,-969.26,0.00027671,2]
[425962287,1782045067000,-572.19,0.00027671,2]
[425962260,1782045067000,-151.0,0.00027671,7]
[425962273,1782045067000,-500.0,0.00027671,2]
[425962256,1782045067000,-8087.97,0.00027671,2]
[425962254,1782045067000,-151.0,0.00027671,7]
[425962257,1782045067000,-500.0,0.00027671,2]
[425962253,1782045067000,-10219.53,0.00027671,2]
[425962255,1782045067000,-8427.78,0.00027671,2]
[425962264,1782045067000,-500.0,0.00027671,2]
[425962262,1782045067000,-500.0,0.00027671,2]
[425962266,1782045067000,-500.0,0.00027671,2]
[425962258,1782045067000,-500.0,0.00027671,2]
[425962269,1782045067000,-169.5427946,0.00027671,2]
[425962259,1782045067000,-500.0,0.00027671,2]
[425962268,1782045067000,-3272.64,0.00027671,2]
[425962261,1782045067000,-604.06,0.00027671,2]
[425962283,1782045067000,-3223.78,0.00027671,2]
[425962263,1782045067000,-249.72197262,0.00027671,2]
[425962267,1782045067000,-500.0,0.00027671,2]
[425962276,1782045067000,-752.63,0.00027671,2]
[425962275,1782045067000,-534.66,0.00027671,2]
[425962281,1782045067000,-500.0,0.00027671,2]
[425962282,1782045067000,-6181.1,0.00027671,2]
[425962279,1782045067000,-500.0,0.00027671,2]
[425962280,1782045067000,-500.0,0.00027671,2]
[425962278,1782045067000,-500.0,0.00027671,2]
[425962277,1782045067000,-500.0,0.00027671,2]
[425962270,1782045067000,-8406.62,0.00027671,2]
[425962274,1782045067000,-576.78,0.00027671,2]
[425962272,1782045067000,-6662.88,0.00027671,2]
[425962271,1782045067000,-620.96408921,0.00027671,2]
[425962265,1782045067000,-500.0,0.00027671,2]
[425962320,1782045067000,-500.0,0.00027671,2]
[425962305,1782045067000,-679.47,0.00027671,2]
[425962310,1782045067000,-500.0,0.00027671,2]
[425962347,1782045067000,-500.0,0.00027671,2]
[425962345,1782045067000,-500.0,0.00027671,2]
[425962348,1782045067000,-500.0,0.00027671,2]